fUST/lending_fUST_20250117
["ID","MTS","AMOUNT","RATE_DAILY","PERIOD"]
[349290254,1737100275416,-503.4439225,0.00022465,3]
[349290255,1737100275426,-500.0,0.00022465,3]
[349290256,1737100275435,-503.54006416,0.00022465,3]
[349290257,1737100275445,-509.46918756,0.00022465,3]
[349290258,1737100275455,-500.0,0.00022465,3]
[349290259,1737100275464,-500.0,0.00022465,3]
[349290260,1737100275474,-500.0,0.00022465,3]
[349290261,1737100275484,-500.0,0.00022465,3]
[349290262,1737100275494,-500.0,0.00022465,3]
[349290263,1737100275505,-395.83041136,0.00022465,3]
[349290264,1737100275514,-525.56919864,0.00022465,3]
[349290265,1737100275524,-711.18,0.00022465,3]
[349290266,1737100275534,-2443.13,0.00022465,3]
[349290267,1737100275543,-500.0,0.00022465,3]
[349290268,1737100275553,-500.0,0.00022465,3]
[349290269,1737100275563,-500.0,0.00022465,3]
[349290270,1737100275572,-504.36368663,0.00022465,3]
[349290271,1737100275582,-500.0,0.00022465,3]
[349290272,1737100275592,-503.02122398,0.00022465,3]
[349290273,1737100275602,-500.0,0.00022465,3]
[349290274,1737100275611,-500.0,0.00022465,3]
[349290275,1737100275621,-504.08390314,0.00022465,3]
[349290276,1737100275630,-196.50401201,0.00022465,3]
[349290277,1737100275639,-504.59566992,0.00022465,3]
[349290278,1737100275649,-16589.66,0.00022465,3]
[349290279,1737100275658,-500.0,0.00022465,3]
[349290280,1737100275669,-500.0,0.00022465,3]
[349290281,1737100275678,-512.84673924,0.00022465,3]
[349290282,1737100275687,-183.10282077,0.00022465,3]
[349290283,1737100275697,-500.0,0.00022465,3]
[349290284,1737100275707,-500.0,0.00022465,3]
[349290285,1737100275717,-537.59791884,0.00022465,3]
[349290286,1737100275727,-437.40848708,0.00022465,3]
[349290287,1737100275738,-567.34,0.00022465,3]
[349290288,1737100275749,-578.72889825,0.00022465,3]
[349290289,1737100275759,-693.68,0.00022465,2]
[349290290,1737100275769,-510.45391554,0.00022465,3]
[349290291,1737100275778,-229.05,0.00022465,3]
[349290292,1737100275788,-507.63220716,0.00022465,3]
[349290293,1737100275797,-505.43187472,0.00022465,3]
[349290294,1737100275806,-500.0,0.00022465,3]
[349290295,1737100275816,-500.0,0.00022465,3]
[349290296,1737100275827,-500.0,0.00022465,3]
[349290297,1737100275836,-500.0,0.00022465,3]
[349290298,1737100275846,-500.0,0.00022465,3]
[349290299,1737100275856,-500.0,0.00022465,3]
[349290300,1737100275866,-500.0,0.00022465,3]
[349290301,1737100275875,-200.0,0.00022465,3]
[349290302,1737100275885,-514.82600701,0.00022465,3]
[349290303,1737100275894,-500.0,0.00022465,3]
[349290304,1737100275906,-500.0,0.00022465,3]
[349290305,1737100275919,-500.0,0.00022465,3]
[349290306,1737100275934,-500.0,0.00022465,3]
[349290307,1737100275944,-505.23386637,0.00022465,3]
[349290308,1737100275955,-551.28,0.00022465,3]
[349290309,1737100275966,-500.0,0.00022465,3]
[349290310,1737100275975,-500.0,0.00022465,3]
[349290311,1737100275984,-505.45409368,0.00022465,3]
[349290312,1737100275997,-502.25919174,0.00022465,3]
[349290313,1737100276007,-500.0,0.00022465,3]
[349290314,1737100276017,-500.0,0.00022465,3]
[349290315,1737100276027,-500.0,0.00022465,3]
[349290316,1737100276036,-500.0,0.00022465,3]
[349290317,1737100276046,-500.0,0.00022465,3]
[349290318,1737100276055,-8321.11,0.00022465,3]
[349290319,1737100276066,-500.0,0.00022465,3]
[349290320,1737100276076,-500.0,0.00022465,3]
[349290321,1737100276086,-500.0,0.00022465,3]
[349290322,1737100276095,-500.0,0.00022465,3]
[349290323,1737100276104,-500.0,0.00022465,3]
[349290324,1737100276113,-500.0,0.00022465,3]
[349290325,1737100276123,-500.0,0.00022465,3]
[349290326,1737100276134,-152.66664768,0.00022465,3]
[349290327,1737100276146,-500.0,0.00022465,3]
[349290328,1737100276155,-503.74754019,0.00022465,3]
[349290329,1737100276165,-638.86078844,0.00022465,3]
[349290330,1737100276180,-500.0,0.00022465,3]
[349290331,1737100276190,-2118.79,0.00022465,3]
[349290332,1737100276199,-500.0,0.00022465,3]
[349290333,1737100276208,-504.74934335,0.00022465,3]
[349290334,1737100276218,-500.0,0.00022465,3]
[349290335,1737100276227,-500.0,0.00022465,3]
[349290336,1737100276237,-500.0,0.00022465,3]
[349290337,1737100276246,-419.7657266,0.00022465,3]
[349290338,1737100276257,-512.63225875,0.00022465,3]
[349290339,1737100276266,-500.0,0.00022465,3]
[349290340,1737100276277,-510.26326016,0.00022465,3]
[349290341,1737100276287,-626.09075018,0.00022465,3]
[349290342,1737100276296,-508.01144051,0.00022465,3]
[349290343,1737100276308,-21559.38,0.00022465,3]
[349290344,1737100276318,-511.07045667,0.00022465,3]
[349290345,1737100276329,-506.34810355,0.00022465,3]
[349290346,1737100276340,-500.0,0.00022465,3]
[349290347,1737100276352,-500.0,0.00022465,3]
[349290348,1737100276361,-500.0,0.00022465,3]
[349290349,1737100276371,-509.15335956,0.00022465,2]
[349290350,1737100276380,-505.89424158,0.00022465,3]
[349290351,1737100276390,-500.0,0.00022465,3]
[349290352,1737100276400,-497.19386179,0.00022465,3]
[349290353,1737100276409,-339.05392091,0.00022465,3]
[349290354,1737100276419,-616.32810096,0.00022465,3]
[349290355,1737100276429,-502.93357753,0.00022465,3]
[349290356,1737100276438,-500.0,0.00022465,3]
[349290357,1737100276447,-520.48202399,0.00022465,3]
[349290358,1737100276456,-500.0,0.00022465,3]
[349290359,1737100276466,-502.50411255,0.00022465,3]
[349290360,1737100276475,-500.0,0.00022465,3]
[349290361,1737100276484,-504.79379904,0.00022465,3]
[349290362,1737100276494,-500.0,0.00022465,3]
[349290363,1737100276503,-318.41576758,0.00022465,3]
[349290364,1737100276513,-500.0,0.00022465,3]
[349290365,1737100276522,-200.76516621,0.00022465,3]
[349290366,1737100276531,-500.0,0.00022465,3]
[349290367,1737100276541,-500.0,0.00022465,3]
[349290368,1737100276550,-500.0,0.00022465,3]
[349290369,1737100276560,-500.0,0.00022465,3]
[349290370,1737100276569,-329.77038432,0.00022465,3]
[349290371,1737100276579,-511.11238655,0.00022465,3]
[349290372,1737100276589,-500.0,0.00022465,3]
[349290373,1737100276598,-510.26770212,0.00022465,3]
[349290374,1737100276607,-500.0,0.00022465,3]
[349290375,1737100276616,-500.0,0.00022465,3]
[349290376,1737100276625,-506.59549524,0.00022465,3]
[349290377,1737100276635,-5781.75,0.00022465,3]
[349290378,1737100276645,-503.85018361,0.00022465,3]
[349290379,1737100276655,-504.22687907,0.00022465,3]
[349290380,1737100276665,-504.67263547,0.00022465,3]
[349290381,1737100276674,-504.54354435,0.00022465,3]
[349290382,1737100276684,-502.99136712,0.00022465,3]
[349290383,1737100276693,-500.0,0.00022465,3]
[349290384,1737100276703,-500.0,0.00022465,3]
[349290385,1737100276711,-500.0,0.00022465,3]
[349290386,1737100276720,-505.26629232,0.00022465,3]
[349290387,1737100276730,-500.0,0.00022465,3]
[349290388,1737100276740,-500.0,0.00022465,3]
[349290389,1737100276749,-505.06533756,0.00022465,3]
[349290390,1737100276759,-500.0,0.00022465,3]
[349290391,1737100276769,-500.0,0.00022465,3]
[349290392,1737100276778,-500.0,0.00022465,3]
[349290393,1737100276788,-503.0541946,0.00022465,3]
[349290394,1737100276797,-3082.4,0.00022465,3]
[349290395,1737100276807,-500.0,0.00022465,3]
[349290396,1737100276816,-500.0,0.00022465,3]
[349290397,1737100276826,-588.46993283,0.00022465,3]
[349290398,1737100276836,-500.0,0.00022465,3]
[349290399,1737100276846,-503.10569565,0.00022465,3]
[349290400,1737100276856,-500.0,0.00022465,3]
[349290401,1737100276866,-500.0,0.00022465,3]
[349290402,1737100276875,-500.0,0.00022465,3]
[349290403,1737100276885,-500.0,0.00022465,3]
[349290404,1737100276894,-500.0,0.00022465,3]
[349290405,1737100276904,-508.59757727,0.00022465,3]
[349290406,1737100276914,-838.25,0.00022465,3]
[349290407,1737100276928,-500.0,0.00022465,3]
[349290408,1737100276938,-500.0,0.00022465,3]
[349290409,1737100276947,-500.0,0.00022465,3]
[349290410,1737100276957,-538.47878878,0.00022465,3]
[349290411,1737100276967,-500.0,0.00022465,3]
[349290412,1737100276976,-500.0,0.00022465,3]
[349290413,1737100276986,-500.0,0.00022465,2]
[349290414,1737100276995,-503.57969869,0.00022465,3]
[349290415,1737100277006,-500.0,0.00022465,3]
[349290416,1737100277016,-249.53,0.00022471,2]
[349290417,1737100277026,-2312.43087544,0.00022485,2]
[349290418,1737100277035,-1000.0,0.00022521,2]
[349290419,1737100277046,-394.58558114,0.00022534,2]
[349290420,1737100277055,-208.0,0.00022544,2]
[349290421,1737100277065,-209.07,0.00022544,2]
[349290422,1737100277075,-306.6911881,0.00022548,2]
[349290423,1737100277086,-3113.03081315,0.00022555,3]
[349290424,1737100277095,-500.0,0.00022602,3]
[349290425,1737100277104,-508.80068032,0.00022602,3]
[349290426,1737100277114,-500.0,0.00022602,3]
[349290427,1737100277123,-501.78181938,0.00022602,3]
[349290428,1737100277132,-510.87506302,0.00022602,3]
[349290429,1737100277142,-502.43518718,0.00022602,3]
[349290430,1737100277152,-262.41,0.00022602,3]
[349290431,1737100277162,-507.25496803,0.00022602,3]
[349290432,1737100277173,-646.37716321,0.00022602,3]
[349290433,1737100277186,-505.54601536,0.00022602,3]
[349290434,1737100277198,-503.75266432,0.00022602,3]
[349290435,1737100277210,-300.36743513,0.00022602,3]
[349290436,1737100277223,-504.64942181,0.00022602,3]
[349290437,1737100277234,-500.0,0.00022602,3]
[349290438,1737100277245,-365.44319844,0.00022602,3]
[349290439,1737100277256,-2118.12,0.00022602,3]
[349290440,1737100277267,-500.0,0.00022602,3]
[349290441,1737100277277,-508.88490235,0.00022602,3]
[349290442,1737100277286,-500.0,0.00022602,3]
[349290443,1737100277298,-543.79593865,0.00022602,3]
[349290444,1737100277309,-500.0,0.00022602,3]
[349290445,1737100277320,-509.92117686,0.00022602,3]
[349290446,1737100277331,-500.0,0.00022602,3]
[349290447,1737100277342,-500.0,0.00022602,3]
[349290448,1737100277353,-500.0,0.00022602,3]
[349290449,1737100277364,-500.0,0.00022602,3]
[349290450,1737100277375,-536.15822076,0.00022602,3]
[349290451,1737100277387,-518.04609401,0.00022602,3]
[349290452,1737100277398,-519.82839567,0.00022602,3]
[349290453,1737100277409,-500.0,0.00022602,3]
[349290454,1737100277422,-724.82,0.00022602,3]
[349290455,1737100277433,-500.0,0.00022602,3]
[349290456,1737100277445,-500.0,0.00022602,3]
[349290457,1737100277457,-500.0,0.00022602,3]
[349290458,1737100277468,-512.19601661,0.00022602,3]
[349290459,1737100277479,-551.04191849,0.00022602,3]
[349290460,1737100277490,-502.84615244,0.00022602,3]
[349290461,1737100277500,-506.36213512,0.00022602,3]
[349290462,1737100277512,-500.0,0.00022602,3]
[349290463,1737100277523,-500.0,0.00022602,3]
[349290464,1737100277534,-500.0,0.00022602,3]
[349290465,1737100277544,-500.0,0.00022602,3]
[349290466,1737100277555,-500.0,0.00022602,3]
[349290467,1737100277567,-500.0,0.00022602,3]
[349290468,1737100277579,-500.0,0.00022602,3]
[349290469,1737100277590,-165.24830441,0.00022602,3]
[349290470,1737100277604,-538.00932645,0.00022602,3]
[349290471,1737100277614,-263.93487055,0.00022602,3]
[349290472,1737100277626,-500.0,0.00022602,3]
[349290473,1737100277636,-510.97853,0.00022602,3]
[349290474,1737100277646,-500.0,0.00022602,3]
[349290475,1737100277656,-500.0,0.00022602,3]
[349290476,1737100277666,-500.0,0.00022602,3]
[349290477,1737100277677,-500.0,0.00022602,3]
[349290478,1737100277688,-500.0,0.00022602,3]
[349290479,1737100277698,-500.0,0.00022602,3]
[349290480,1737100277710,-3708.33,0.00022602,3]
[349290481,1737100277720,-500.0,0.00022602,3]
[349290482,1737100277733,-1524.86,0.00022602,3]
[349290483,1737100277744,-500.0,0.00022602,3]
[349290484,1737100277756,-500.0,0.00022602,3]
[349290485,1737100277767,-500.0,0.00022602,3]
[349290486,1737100277779,-500.0,0.00022602,3]
[349290487,1737100277790,-500.0,0.00022602,3]
[349290488,1737100277802,-500.00277067,0.00022602,3]
[349290489,1737100277815,-511.52070343,0.00022602,3]
[349290490,1737100277827,-513.4,0.00022602,3]
[349290491,1737100277838,-506.13277531,0.00022602,3]
[349290492,1737100277852,-505.99110118,0.00022602,3]
[349290493,1737100277864,-508.77815397,0.00022602,3]
[349290494,1737100277876,-594.53056671,0.00022602,3]
[349290495,1737100277887,-500.0,0.00022602,3]
[349290496,1737100277897,-500.0,0.00022602,3]
[349290497,1737100277910,-500.0,0.00022602,3]
[349290498,1737100277921,-251.77079958,0.00022602,3]
[349290499,1737100277931,-533.45108417,0.00022602,3]
[349290500,1737100277941,-509.49798876,0.00022602,3]
[349290501,1737100277954,-500.0,0.00022602,3]
[349290502,1737100277965,-522.33624623,0.00022602,3]
[349290503,1737100277976,-500.0,0.00022602,3]
[349290504,1737100277989,-500.0,0.00022602,3]
[349290505,1737100278002,-500.0,0.00022602,3]
[349290506,1737100278014,-500.0,0.00022602,3]
[349290507,1737100278026,-500.0,0.00022602,3]
[349290508,1737100278037,-500.0,0.00022602,3]
[349290509,1737100278047,-711.18,0.00022602,3]
[349290510,1737100278058,-2443.13,0.00022602,3]
[349290511,1737100278070,-500.0,0.00022602,3]
[349290512,1737100278082,-500.0,0.00022602,3]
[349290513,1737100278093,-500.0,0.00022602,3]
[349290514,1737100278106,-500.0,0.00022602,3]
[349290515,1737100278118,-500.0,0.00022602,3]
[349290516,1737100278131,-16589.66,0.00022602,3]
[349290517,1737100278142,-504.3146049,0.00022602,3]
[349290518,1737100278152,-500.0,0.00022602,3]
[349290519,1737100278163,-500.0,0.00022602,3]
[349290520,1737100278175,-693.68,0.00022602,2]
[349290521,1737100278187,-500.0,0.00022602,3]
[349290522,1737100278198,-500.0,0.00022602,3]
[349290523,1737100278209,-500.0,0.00022602,3]
[349290524,1737100278220,-500.0,0.00022602,3]
[349290525,1737100278231,-500.0,0.00022602,3]
[349290526,1737100278242,-500.0,0.00022602,3]
[349290527,1737100278253,-200.0,0.00022602,3]
[349290528,1737100278264,-506.63955419,0.00022602,3]
[349290529,1737100278274,-500.0,0.00022602,3]
[349290530,1737100278285,-500.0,0.00022602,3]
[349290531,1737100278296,-613.2575289,0.00022602,3]
[349290532,1737100278307,-551.28,0.00022602,3]
[349290533,1737100278318,-500.0,0.00022602,3]
[349290534,1737100278329,-500.0,0.00022602,3]
[349290535,1737100278339,-500.0,0.00022602,3]
[349290536,1737100278349,-515.4281359,0.00022602,3]
[349290537,1737100278359,-500.0,0.00022602,3]
[349290538,1737100278370,-500.0,0.00022602,3]
[349290539,1737100278380,-8321.11,0.00022602,3]
[349290540,1737100278392,-500.0,0.00022602,3]
[349290541,1737100278402,-320.72115195,0.00022602,3]
[349290542,1737100278413,-441.39564391,0.00022602,3]
[349290543,1737100278423,-621.76,0.00022602,3]
[349290544,1737100278434,-500.0,0.00022602,3]
[349290545,1737100278446,-500.0,0.00022602,3]
[349290546,1737100278456,-239.60503769,0.00022602,3]
[349290547,1737100278467,-477.6208367,0.00022602,3]
[349290548,1737100278479,-2118.79,0.00022602,3]
[349290549,1737100278490,-500.0,0.00022602,3]
[349290550,1737100278501,-500.0,0.00022602,3]
[349290551,1737100278512,-500.0,0.00022602,3]
[349290552,1737100278523,-500.0,0.00022602,3]
[349290553,1737100278535,-500.0,0.00022602,3]
[349290554,1737100278546,-21559.38,0.00022602,3]
[349290555,1737100278557,-500.0,0.00022602,3]
[349290556,1737100278569,-610.39723106,0.00022602,3]
[349290557,1737100278579,-500.0,0.00022602,3]
[349290558,1737100278589,-500.0,0.00022602,3]
[349290559,1737100278600,-500.0,0.00022602,3]
[349290560,1737100278611,-500.0,0.00022602,3]
[349290561,1737100278626,-500.0,0.00022602,3]
[349290562,1737100278636,-500.0,0.00022602,3]
[349290563,1737100278646,-190.1733375,0.00022602,3]
[349290564,1737100278656,-500.0,0.00022602,3]
[349290565,1737100278667,-500.0,0.00022602,3]
[349290566,1737100278678,-500.0,0.00022602,3]
[349290567,1737100278688,-229.95,0.00022602,3]
[349290568,1737100278698,-500.0,0.00022602,3]
[349290569,1737100278710,-5781.75,0.00022602,3]
[349290570,1737100278720,-500.0,0.00022602,3]
[349290571,1737100278730,-500.0,0.00022602,3]
[349290572,1737100278741,-500.0,0.00022602,3]
[349290573,1737100278751,-301.66008458,0.00022602,3]
[349290574,1737100278762,-500.0,0.00022602,3]
[349290575,1737100278772,-500.0,0.00022602,3]
[349290576,1737100278783,-500.0,0.00022602,3]
[349290577,1737100278794,-500.0,0.00022602,3]
[349290578,1737100278804,-3082.4,0.00022602,3]
[349290579,1737100278816,-500.0,0.00022602,3]
[349290580,1737100278826,-417.79861115,0.00022602,3]
[349290581,1737100278837,-500.0,0.00022602,3]
[349290582,1737100278848,-500.0,0.00022602,3]
[349290583,1737100278859,-514.99629683,0.00022602,3]
[349290584,1737100278870,-532.9,0.00022602,3]
[349290585,1737100278881,-500.0,0.00022602,3]
[349290586,1737100278893,-500.0,0.00022602,3]
[349290587,1737100278904,-838.25,0.00022602,3]
[349290588,1737100278917,-500.0,0.00022602,3]
[349290589,1737100278930,-500.0,0.00022602,3]
[349290590,1737100278941,-151.79,0.00022602,3]
[349290591,1737100278952,-505.66658335,0.00022602,3]
[349290592,1737100278963,-500.0,0.00022602,2]
[349290593,1737100278973,-5014.74169822,0.00022658,2]
[349290594,1737100278983,-5000.0,0.00022658,2]
[349290595,1737100278994,-5000.0,0.00022658,2]
[349290596,1737100279005,-5000.0,0.00022658,2]
[349290597,1737100279015,-5000.0,0.00022658,2]
[349290598,1737100279025,-3113.03081315,0.00022659,3]
[349290599,1737100279037,-2312.43087544,0.00022662,2]
[349290600,1737100279048,-5000.0,0.00022675,2]
[349290601,1737100279059,-9064.83354343,0.00022679,2]
[349290602,1737100279069,-5000.0,0.00022679,2]
[349290603,1737100279081,-5000.0,0.00022679,2]
[349290604,1737100279091,-5000.0,0.00022679,2]
[349290605,1737100279102,-5000.0,0.00022679,2]
[349290606,1737100279112,-5000.0,0.00022681,7]
[349290607,1737100279294,-353.5775999,0.00022685,2]
[349290608,1737100279309,-353.5775999,0.00022685,2]
[349290609,1737100279320,-353.5775999,0.00022685,2]
[349290610,1737100279330,-353.5775999,0.00022685,2]
[349290611,1737100279340,-351.8951584,0.00022685,2]
[349290612,1737100279350,-600.0,0.00022711,2]
[349290613,1737100279360,-1000.0,0.00022721,2]
[349290614,1737100279370,-503.07678217,0.00022721,2]
[349290615,1737100279381,-1000.0,0.00022721,2]
[349290616,1737100279390,-519.56897679,0.00022721,2]
[349290617,1737100279399,-1000.0,0.00022721,2]
[349290618,1737100279409,-501.5563838,0.00022721,2]
[349290619,1737100279419,-1000.0,0.00022721,2]
[349290620,1737100279429,-8751.46349626,0.00022737,2]
[349290621,1737100279440,-5000.0,0.00022737,2]
[349290622,1737100279450,-5000.0,0.00022737,2]
[349290623,1737100279461,-5000.0,0.00022737,2]
[349290624,1737100279471,-5000.0,0.00022737,2]
[349290625,1737100279481,-222.82819629,0.00022739,2]
[349290626,1737100279490,-500.0,0.00022739,2]
[349290627,1737100279500,-274.35460313,0.00022739,2]
[349290628,1737100279509,-500.0,0.00022739,2]
[349290629,1737100279520,-500.0,0.00022739,3]
[349290630,1737100279529,-587.33165902,0.00022739,3]
[349290631,1737100279539,-500.0,0.00022739,3]
[349290632,1737100279549,-2118.12,0.00022739,3]
[349290633,1737100279559,-500.0,0.00022739,3]
[349290634,1737100279568,-500.0,0.00022739,3]
[349290635,1737100279577,-500.0,0.00022739,3]
[349290636,1737100279586,-500.0,0.00022739,3]
[349290637,1737100279595,-623.46773249,0.00022739,3]
[349290638,1737100279604,-162.33,0.00022739,3]
[349290639,1737100279614,-484.31384569,0.00022739,3]
[349290640,1737100279624,-724.82,0.00022739,3]
[349290641,1737100279635,-524.18498413,0.00022739,3]
[349290642,1737100279645,-453.24962985,0.00022739,3]
[349290643,1737100279655,-500.0,0.00022739,3]
[349290644,1737100279666,-500.0,0.00022739,3]
[349290645,1737100279677,-500.0,0.00022739,3]
[349290646,1737100279687,-500.0,0.00022739,3]
[349290647,1737100279697,-510.68676806,0.00022739,3]
[349290648,1737100279707,-500.0,0.00022739,3]
[349290649,1737100279717,-500.0,0.00022739,3]
[349290650,1737100279728,-500.0,0.00022739,3]
[349290651,1737100279738,-500.0,0.00022739,3]
[349290652,1737100279748,-500.0,0.00022739,3]
[349290653,1737100279759,-500.0,0.00022739,3]
[349290654,1737100279769,-3708.33,0.00022739,3]
[349290655,1737100279779,-500.0,0.00022739,3]
[349290656,1737100279789,-1524.86,0.00022739,3]
[349290657,1737100279799,-500.0,0.00022739,3]
[349290658,1737100279809,-500.0,0.00022739,3]
[349290659,1737100279821,-500.0,0.00022739,3]
[349290660,1737100279831,-254.1,0.00022739,3]
[349290661,1737100279840,-500.0,0.00022739,3]
[349290662,1737100279850,-500.0,0.00022739,3]
[349290663,1737100279860,-500.0,0.00022739,3]
[349290664,1737100279870,-181.31378042,0.00022739,3]
[349290665,1737100279880,-500.0,0.00022739,3]
[349290666,1737100279890,-500.0,0.00022739,3]
[349290667,1737100279901,-500.0,0.00022739,3]
[349290668,1737100279914,-711.18,0.00022739,3]
[349290669,1737100279924,-2443.13,0.00022739,3]
[349290670,1737100279934,-317.94322719,0.00022739,3]
[349290671,1737100279944,-500.0,0.00022739,3]
[349290672,1737100279954,-500.0,0.00022739,3]
[349290673,1737100279964,-500.0,0.00022739,3]
[349290674,1737100279975,-16589.66,0.00022739,3]
[349290675,1737100279986,-500.0,0.00022739,3]
[349290676,1737100279995,-500.0,0.00022739,3]
[349290677,1737100280004,-693.68,0.00022739,2]
[349290678,1737100280015,-500.0,0.00022739,3]
[349290679,1737100280025,-505.61453084,0.00022739,3]
[349290680,1737100280037,-324.1331915,0.00022739,3]
[349290681,1737100280046,-500.0,0.00022739,3]
[349290682,1737100280056,-505.8728876,0.00022739,3]
[349290683,1737100280067,-500.0,0.00022739,3]
[349290684,1737100280077,-200.0,0.00022739,3]
[349290685,1737100280087,-500.0,0.00022739,3]
[349290686,1737100280097,-505.16692164,0.00022739,3]
[349290687,1737100280107,-551.28,0.00022739,3]
[349290688,1737100280117,-500.0,0.00022739,3]
[349290689,1737100280127,-496.91789423,0.00022739,3]
[349290690,1737100280137,-500.0,0.00022739,3]
[349290691,1737100280147,-168.23166512,0.00022739,3]
[349290692,1737100280157,-500.0,0.00022739,3]
[349290693,1737100280167,-8321.11,0.00022739,3]
[349290694,1737100280176,-500.0,0.00022739,3]
[349290695,1737100280186,-162.6397398,0.00022739,3]
[349290696,1737100280196,-500.0,0.00022739,3]
[349290697,1737100280206,-2118.79,0.00022739,3]
[349290698,1737100280215,-500.0,0.00022739,3]
[349290699,1737100280225,-513.48750401,0.00022739,3]
[349290700,1737100280235,-500.0,0.00022739,3]
[349290701,1737100280244,-500.0,0.00022739,3]
[349290702,1737100280254,-500.0,0.00022739,3]
[349290703,1737100280263,-21559.38,0.00022739,3]
[349290704,1737100280272,-551.21,0.00022739,3]
[349290705,1737100280282,-500.0,0.00022739,3]
[349290706,1737100280292,-500.0,0.00022739,3]
[349290707,1737100280302,-500.0,0.00022739,3]
[349290708,1737100280312,-505.0,0.00022739,3]
[349290709,1737100280321,-500.0,0.00022739,3]
[349290710,1737100280331,-500.0,0.00022739,3]
[349290711,1737100280341,-500.0,0.00022739,3]
[349290712,1737100280352,-500.0,0.00022739,3]
[349290713,1737100280361,-500.0,0.00022739,3]
[349290714,1737100280371,-5781.75,0.00022739,3]
[349290715,1737100280381,-500.0,0.00022739,3]
[349290716,1737100280390,-519.60482518,0.00022739,3]
[349290717,1737100280400,-222.75645568,0.00022739,3]
[349290718,1737100280410,-500.0,0.00022739,3]
[349290719,1737100280420,-500.0,0.00022739,3]
[349290720,1737100280429,-500.0,0.00022739,3]
[349290721,1737100280438,-500.0,0.00022739,3]
[349290722,1737100280448,-3082.4,0.00022739,3]
[349290723,1737100280458,-510.71086473,0.00022739,3]
[349290724,1737100280468,-500.0,0.00022739,3]
[349290725,1737100280478,-500.0,0.00022739,3]
[349290726,1737100280488,-838.25,0.00022739,3]
[349290727,1737100280498,-500.0,0.00022739,3]
[349290728,1737100280507,-500.0,0.00022739,3]
[349290729,1737100280518,-500.0,0.00022739,2]
[349290730,1737100280527,-3113.03081315,0.00022762,3]
[349290731,1737100280537,-174.5,0.00022763,7]
[349290732,1737100280547,-62894.0,0.000228,2]
[349290733,1737100280556,-153.0,0.00022822,2]
[349290734,1737100280566,-153.0,0.00022822,2]
[349290735,1737100280575,-153.0,0.00022822,2]
[349290736,1737100280585,-446.9760427,0.00022822,2]
[349290737,1737100280595,-491.6113252,0.00022822,2]
[349290738,1737100280605,-431.0251471,0.00022822,2]
[349290739,1737100280615,-429.9532936,0.00022822,2]
[349290740,1737100280625,-2312.43087544,0.00022839,2]
[349290741,1737100280636,-3113.03081315,0.00022866,3]
[349290742,1737100280646,-63864.37946873,0.0002287,2]
[349290743,1737100280657,-500.0,0.00022876,3]
[349290744,1737100280668,-500.0,0.00022876,3]
[349290745,1737100280677,-2118.12,0.00022876,3]
[349290746,1737100280686,-500.0,0.00022876,3]
[349290747,1737100280695,-495.04596775,0.00022876,3]
[349290748,1737100280705,-500.0,0.00022876,3]
[349290749,1737100280715,-184.90119514,0.00022876,3]
[349290750,1737100280725,-724.82,0.00022876,3]
[349290751,1737100280735,-321.95382688,0.00022876,3]
[349290752,1737100280746,-500.0,0.00022876,3]
[349290753,1737100280755,-500.0,0.00022876,3]